[Event "Early-Titled-Tuesday-Blitz-April-23-2024"]
[Site "Chess.com"]
[Date "2024.04.23"]
[Round "4"]
[White "Baku_Boulevard"]
[Black "RobertoJBM"]
[Result "1-0"]
[WhiteElo "3049"]
[BlackElo "2853"]
[TimeControl "180+1"]
[EndTime "8:40:22 PDT"]
[Termination "Baku_Boulevard won on time"]

1. e4 {[%clk 0:03:00.9]} 1... c6 {[%clk 0:02:59.4]} 2. Nf3 {[%clk 0:02:59.7]}
2... d5 {[%clk 0:02:58.7]} 3. e5 {[%clk 0:03:00.2]} 3... Bg4 {[%clk 0:02:55.7]}
4. Be2 {[%clk 0:02:59.6]} 4... e6 {[%clk 0:02:53.1]} 5. O-O {[%clk 0:02:59.5]}
5... Ne7 {[%clk 0:02:52.1]} 6. d4 {[%clk 0:02:59.3]} 6... Nd7 {[%clk 0:02:51.3]}
7. Nbd2 {[%clk 0:02:58.5]} 7... c5 {[%clk 0:02:50.4]} 8. c3 {[%clk 0:02:57.2]}
8... Nc6 {[%clk 0:02:50.3]} 9. h3 {[%clk 0:02:57.2]} 9... Bh5 {[%clk 0:02:49.8]}
10. Re1 {[%clk 0:02:50.3]} 10... Be7 {[%clk 0:02:46.6]} 11. a3 {[%clk 0:02:46]}
11... Rc8 {[%clk 0:02:32.9]} 12. b4 {[%clk 0:02:44.9]} 12... cxd4 {[%clk
0:02:32.8]} 13. cxd4 {[%clk 0:02:45]} 13... O-O {[%clk 0:02:31]} 14. Nb3 {[%clk
0:02:44.7]} 14... Nb6 {[%clk 0:02:30.1]} 15. Nc5 {[%clk 0:02:43.7]} 15... Rc7
{[%clk 0:02:29.8]} 16. Bf4 {[%clk 0:02:43.1]} 16... Nc4 {[%clk 0:02:26.8]} 17.
g4 {[%clk 0:01:56.8]} 17... Bg6 {[%clk 0:02:26.3]} 18. Qb3 {[%clk 0:01:56.6]}
18... b6 {[%clk 0:02:18.7]} 19. Na6 {[%clk 0:01:56.6]} 19... Rc8 {[%clk
0:02:15.7]} 20. Bg3 {[%clk 0:01:56.7]} 20... Be4 {[%clk 0:02:09.9]} 21. Rad1
{[%clk 0:01:48]} 21... Qd7 {[%clk 0:02:04.8]} 22. Qa2 {[%clk 0:01:23]} 22... Qb7
{[%clk 0:02:01.6]} 23. b5 {[%clk 0:01:23.3]} 23... N6a5 {[%clk 0:02:00.6]} 24.
a4 {[%clk 0:01:23.7]} 24... Na3 {[%clk 0:01:47.8]} 25. Rc1 {[%clk 0:01:07.6]}
25... Nc2 {[%clk 0:01:35.5]} 26. Red1 {[%clk 0:01:04.1]} 26... Bxf3 {[%clk
0:01:15.8]} 27. Rxc2 {[%clk 0:01:01.5]} 27... Rxc2 {[%clk 0:01:15]} 28. Qxc2
{[%clk 0:01:01.2]} 28... Rc8 {[%clk 0:01:12]} 29. Qd3 {[%clk 0:01:00]} 29...
Bxe2 {[%clk 0:00:58]} 30. Qxe2 {[%clk 0:01:00.9]} 30... Rc4 {[%clk 0:00:56.9]}
31. f4 {[%clk 0:00:46.3]} 31... Rxa4 {[%clk 0:00:51.2]} 32. f5 {[%clk
0:00:46.7]} 32... Ra3 {[%clk 0:00:49.2]} 33. Qf2 {[%clk 0:00:39.2]} 33... Qd7
{[%clk 0:00:44.2]} 34. Rf1 {[%clk 0:00:39.3]} 34... exf5 {[%clk 0:00:42.5]} 35.
gxf5 {[%clk 0:00:37.3]} 35... Bg5 {[%clk 0:00:29]} 36. e6 {[%clk 0:00:35.9]}
36... Qxb5 {[%clk 0:00:22.9]} 37. Nc7 {[%clk 0:00:32.1]} 37... Qd3 {[%clk
0:00:18.6]} 38. Kh2 {[%clk 0:00:32.4]} 38... Bf6 {[%clk 0:00:12.9]} 39. Qg2
{[%clk 0:00:27.9]} 39... Qxd4 {[%clk 0:00:09.9]} 40. Re1 {[%clk 0:00:24.7]}
40... fxe6 {[%clk 0:00:09.4]} 41. fxe6 {[%clk 0:00:24.6]} 41... Re3 {[%clk
0:00:06.6]} 42. Rxe3 {[%clk 0:00:20.6]} 42... Qxe3 {[%clk 0:00:07.5]} 43. Qxd5
{[%clk 0:00:21.1]} 43... Qe2+ {[%clk 0:00:05.9]} 44. Kg1 {[%clk 0:00:21.5]}
44... Qe3+ {[%clk 0:00:04.5]} 45. Kf1 {[%clk 0:00:17.9]} 45... Kf8 {[%clk
0:00:01.3]} 46. Bd6+ {[%clk 0:00:13.7]} 46... Be7 {[%clk 0:00:01.4]} 47. Qf5+
{[%clk 0:00:13.9]} 1-0

[Event "Early-Titled-Tuesday-Blitz-April-23-2024"]
[Site "Chess.com"]
[Date "2024.04.23"]
[Round "4"]
[White "Agibileg"]
[Black "GlavkonVVS"]
[Result "1-0"]
[WhiteElo "2815"]
[BlackElo "2596"]
[TimeControl "180+1"]
[EndTime "8:40:22 PDT"]
[Termination "Agibileg won by resignation"]

1. d4 {[%clk 0:03:00]} 1... Nf6 {[%clk 0:02:56.4]} 2. c4 {[%clk 0:03:00]} 2...
c5 {[%clk 0:02:56.4]} 3. d5 {[%clk 0:02:59.7]} 3... e6 {[%clk 0:02:56.8]} 4. Nc3
{[%clk 0:02:59.7]} 4... exd5 {[%clk 0:02:57.2]} 5. cxd5 {[%clk 0:03:00.4]} 5...
d6 {[%clk 0:02:57.7]} 6. e4 {[%clk 0:03:00.1]} 6... g6 {[%clk 0:02:58.3]} 7. Bd3
{[%clk 0:02:57.8]} 7... Bg7 {[%clk 0:02:58.7]} 8. h3 {[%clk 0:02:56.9]} 8... O-O
{[%clk 0:02:59]} 9. Nf3 {[%clk 0:02:57.1]} 9... b5 {[%clk 0:02:59.5]} 10. Nxb5
{[%clk 0:02:52]} 10... Nxe4 {[%clk 0:02:58.7]} 11. Bxe4 {[%clk 0:02:48.4]} 11...
Re8 {[%clk 0:02:58.8]} 12. Ng5 {[%clk 0:02:45]} 12... Qa5+ {[%clk 0:02:57.3]}
13. Nc3 {[%clk 0:02:41.3]} 13... Ba6 {[%clk 0:02:50.3]} 14. f3 {[%clk
0:02:35.5]} 14... h6 {[%clk 0:02:49.3]} 15. Ne6 {[%clk 0:02:33.4]} 15... fxe6
{[%clk 0:02:47.6]} 16. Bxg6 {[%clk 0:02:33.3]} 16... Re7 {[%clk 0:02:41.7]} 17.
Kf2 {[%clk 0:02:26.9]} 17... Bd4+ {[%clk 0:02:39.7]} 18. Be3 {[%clk 0:02:21.7]}
18... Bxe3+ {[%clk 0:02:38.4]} 19. Kxe3 {[%clk 0:02:22.1]} 19... exd5+ {[%clk
0:02:38.8]} 20. Kf2 {[%clk 0:02:21.5]} 20... d4 {[%clk 0:02:35.2]} 21. Be4
{[%clk 0:01:48.2]} 21... dxc3 {[%clk 0:02:30]} 22. Bxa8 {[%clk 0:01:43.5]} 22...
Re2+ {[%clk 0:02:28.2]} 23. Kg3 {[%clk 0:01:42.5]} 23... Qd8 {[%clk 0:02:20.2]}
24. Qd5+ {[%clk 0:01:38.2]} 24... Kh8 {[%clk 0:02:17.5]} 25. bxc3 {[%clk
0:01:36.7]} 25... Qf6 {[%clk 0:02:04.8]} 26. Rhg1 {[%clk 0:01:30.5]} 26... Nd7
{[%clk 0:01:48.6]} 27. Rae1 {[%clk 0:01:15.2]} 27... Ne5 {[%clk 0:01:35.6]} 28.
Rxe2 {[%clk 0:01:07.2]} 28... Bxe2 {[%clk 0:01:35]} 29. Re1 {[%clk 0:01:05.9]}
29... Bc4 {[%clk 0:01:27.6]} 30. Qb7 {[%clk 0:00:57]} 30... Qg5+ {[%clk
0:01:21.7]} 31. Kh2 {[%clk 0:00:57]} 31... Qf4+ {[%clk 0:01:20.7]} 32. Kh1
{[%clk 0:00:56.6]} 32... Qg3 {[%clk 0:01:16.1]} 33. Qb8+ {[%clk 0:00:48.6]}
33... Kg7 {[%clk 0:01:15.8]} 34. Qc7+ {[%clk 0:00:48.9]} 34... Bf7 {[%clk
0:01:06.8]} 35. Rd1 {[%clk 0:00:46.3]} 35... Nc4 {[%clk 0:00:36.5]} 36. Bd5
{[%clk 0:00:39.6]} 36... Qf4 {[%clk 0:00:35.8]} 37. Qxf7+ {[%clk 0:00:35.4]}
37... Qxf7 {[%clk 0:00:35.8]} 38. Bxf7 {[%clk 0:00:36.2]} 38... Kxf7 {[%clk
0:00:36.5]} 39. Kg1 {[%clk 0:00:34.6]} 39... Ke6 {[%clk 0:00:36]} 40. Kf2 {[%clk
0:00:34.5]} 40... d5 {[%clk 0:00:36.4]} 41. Ke2 {[%clk 0:00:34.3]} 41... Ke5
{[%clk 0:00:33.9]} 42. Rb1 {[%clk 0:00:31.5]} 42... d4 {[%clk 0:00:23]} 43. Kd3
{[%clk 0:00:30.3]} 43... Ne3 {[%clk 0:00:19.6]} 44. cxd4+ {[%clk 0:00:30.3]}
44... cxd4 {[%clk 0:00:19.9]} 45. g3 {[%clk 0:00:27.1]} 45... Nf5 {[%clk
0:00:16]} 46. Rb5+ {[%clk 0:00:26.5]} 46... Ke6 {[%clk 0:00:16.1]} 47. Rxf5
{[%clk 0:00:26.4]} 47... Kxf5 {[%clk 0:00:16.2]} 48. Kxd4 {[%clk 0:00:26.6]}
48... h5 {[%clk 0:00:16.8]} 49. h4 {[%clk 0:00:25.8]} 49... a5 {[%clk
0:00:16.4]} 50. a4 {[%clk 0:00:26.1]} 1-0

[Event "Early-Titled-Tuesday-Blitz-April-23-2024"]
[Site "Chess.com"]
[Date "2024.04.23"]
[Round "4"]
[White "lupta_robin"]
[Black "superchess02"]
[Result "1/2-1/2"]
[WhiteElo "2573"]
[BlackElo "2886"]
[TimeControl "180+1"]
[EndTime "8:40:22 PDT"]
[Termination "Game drawn by repetition"]

1. b3 {[%clk 0:03:00.9]} 1... Nf6 {[%clk 0:02:59.6]} 2. Bb2 {[%clk 0:03:00.7]}
2... e6 {[%clk 0:02:58.9]} 3. Nf3 {[%clk 0:03:00.7]} 3... c5 {[%clk 0:02:58.8]}
4. e3 {[%clk 0:02:57.9]} 4... Nc6 {[%clk 0:02:58.5]} 5. c4 {[%clk 0:02:55.5]}
5... d5 {[%clk 0:02:57.9]} 6. cxd5 {[%clk 0:02:55.2]} 6... exd5 {[%clk 0:02:57]}
7. Bb5 {[%clk 0:02:54.4]} 7... Bd6 {[%clk 0:02:55]} 8. h3 {[%clk 0:02:50.3]}
8... O-O {[%clk 0:02:54.8]} 9. O-O {[%clk 0:02:46.5]} 9... a6 {[%clk 0:02:39.9]}
10. Bxc6 {[%clk 0:02:36.3]} 10... bxc6 {[%clk 0:02:40.8]} 11. d4 {[%clk
0:02:36.4]} 11... cxd4 {[%clk 0:02:37.6]} 12. Qxd4 {[%clk 0:02:23.9]} 12... c5
{[%clk 0:02:27.3]} 13. Qh4 {[%clk 0:02:23.3]} 13... Be7 {[%clk 0:02:26.1]} 14.
Rd1 {[%clk 0:01:50.6]} 14... h6 {[%clk 0:02:07.4]} 15. Nc3 {[%clk 0:01:04]}
15... Be6 {[%clk 0:01:51.1]} 16. Rac1 {[%clk 0:00:53.6]} 16... Qb8 {[%clk
0:01:31.5]} 17. Na4 {[%clk 0:00:47.6]} 17... Rc8 {[%clk 0:01:28.2]} 18. Ne5
{[%clk 0:00:23.6]} 18... Qb7 {[%clk 0:01:06.1]} 19. Nd3 {[%clk 0:00:20.2]} 19...
c4 {[%clk 0:00:51.8]} 20. Nf4 {[%clk 0:00:19.4]} 20... cxb3 {[%clk 0:00:46.1]}
21. Nxe6 {[%clk 0:00:18.6]} 21... fxe6 {[%clk 0:00:46.3]} 22. axb3 {[%clk
0:00:18]} 22... Qxb3 {[%clk 0:00:41.8]} 23. Qd4 {[%clk 0:00:15.7]} 23... Rab8
{[%clk 0:00:25]} 24. Rxc8+ {[%clk 0:00:14.9]} 24... Rxc8 {[%clk 0:00:25.9]} 25.
Nb6 {[%clk 0:00:11.9]} 25... Rb8 {[%clk 0:00:25.6]} 26. Nd7 {[%clk 0:00:11.5]}
26... Qxb2 {[%clk 0:00:19.8]} 27. Nxb8 {[%clk 0:00:10]} 27... Qxb8 {[%clk
0:00:20.7]} 28. Ra1 {[%clk 0:00:09.6]} 28... Ne4 {[%clk 0:00:17.2]} 29. Rxa6
{[%clk 0:00:06.4]} 29... Qb1+ {[%clk 0:00:16.8]} 30. Kh2 {[%clk 0:00:06]} 30...
Nxf2 {[%clk 0:00:16.9]} 31. Rxe6 {[%clk 0:00:03.6]} 31... Qh1+ {[%clk
0:00:16.1]} 32. Kg3 {[%clk 0:00:03.9]} 32... Ne4+ {[%clk 0:00:16.8]} 33. Rxe4
{[%clk 0:00:04]} 33... dxe4 {[%clk 0:00:17.5]} 34. Qd5+ {[%clk 0:00:04.4]} 34...
Kh8 {[%clk 0:00:17.4]} 35. Qa8+ {[%clk 0:00:04.9]} 35... Bd8 {[%clk 0:00:11.4]}
36. Qxd8+ {[%clk 0:00:05.1]} 36... Kh7 {[%clk 0:00:12.2]} 37. Qd5 {[%clk
0:00:05.2]} 37... Qe1+ {[%clk 0:00:11.6]} 38. Kf4 {[%clk 0:00:05.5]} 38... Qf2+
{[%clk 0:00:11.9]} 39. Kxe4 {[%clk 0:00:05.8]} 39... Qxg2+ {[%clk 0:00:12.2]}
40. Kd4 {[%clk 0:00:06]} 40... Qxh3 {[%clk 0:00:11.6]} 41. Qe4+ {[%clk
0:00:06.2]} 41... Kg8 {[%clk 0:00:10.2]} 42. Qe8+ {[%clk 0:00:06.7]} 42... Kh7
{[%clk 0:00:09.8]} 43. Qe4+ {[%clk 0:00:07.6]} 43... g6 {[%clk 0:00:09.5]} 44.
Qe7+ {[%clk 0:00:08]} 44... Kg8 {[%clk 0:00:10]} 45. Qe8+ {[%clk 0:00:08.6]}
45... Kg7 {[%clk 0:00:10.7]} 46. Qe7+ {[%clk 0:00:09.5]} 46... Kg8 {[%clk
0:00:11]} 47. Qe8+ {[%clk 0:00:10.4]} 47... Kg7 {[%clk 0:00:11.6]} 48. Qe7+
{[%clk 0:00:11.3]} 48... Kg8 {[%clk 0:00:11.7]} 1/2-1/2

[Event "Early-Titled-Tuesday-Blitz-April-23-2024"]
[Site "Chess.com"]
[Date "2024.04.23"]
[Round "4"]
[White "bazar-wokzal"]
[Black "Yonousomodulo"]
[Result "1/2-1/2"]
[WhiteElo "2603"]
[BlackElo "2399"]
[TimeControl "180+1"]
[EndTime "8:40:22 PDT"]
[Termination "Game drawn by repetition"]

1. e4 {[%clk 0:03:00.9]} 1... c6 {[%clk 0:03:00.4]} 2. d4 {[%clk 0:02:59.2]}
2... d5 {[%clk 0:03:00.8]} 3. f3 {[%clk 0:02:58.9]} 3... dxe4 {[%clk 0:03:00.5]}
4. fxe4 {[%clk 0:02:58.4]} 4... e5 {[%clk 0:03:01.4]} 5. Nf3 {[%clk 0:02:57.3]}
5... Bg4 {[%clk 0:03:01.9]} 6. c3 {[%clk 0:02:54.5]} 6... Bd6 {[%clk 0:03:01.3]}
7. Be3 {[%clk 0:02:49.1]} 7... Nd7 {[%clk 0:03:00.6]} 8. Bd3 {[%clk 0:02:47.6]}
8... Ngf6 {[%clk 0:02:58.1]} 9. O-O {[%clk 0:02:47.5]} 9... O-O {[%clk
0:02:57.4]} 10. Nbd2 {[%clk 0:02:46.5]} 10... Re8 {[%clk 0:02:57]} 11. Qb3
{[%clk 0:02:35.9]} 11... b5 {[%clk 0:02:46.2]} 12. a4 {[%clk 0:02:25.2]} 12...
a6 {[%clk 0:02:45.2]} 13. h3 {[%clk 0:02:19.5]} 13... Bh5 {[%clk 0:02:44.4]} 14.
Rf2 {[%clk 0:02:09.7]} 14... Qc7 {[%clk 0:02:41.4]} 15. Raf1 {[%clk 0:02:07]}
15... Bg6 {[%clk 0:02:40.5]} 16. axb5 {[%clk 0:01:39.3]} 16... axb5 {[%clk
0:02:40]} 17. Qc2 {[%clk 0:01:37.4]} 17... Ra2 {[%clk 0:02:31.7]} 18. Qb1 {[%clk
0:01:32.9]} 18... Rea8 {[%clk 0:02:30.1]} 19. Nh4 {[%clk 0:01:29.2]} 19... R8a4
{[%clk 0:02:02.3]} 20. Nxg6 {[%clk 0:01:24.5]} 20... hxg6 {[%clk 0:02:03.2]} 21.
Bc2 {[%clk 0:01:16.8]} 21... Ra8 {[%clk 0:02:02.6]} 22. Bb3 {[%clk 0:01:12.9]}
22... R2a6 {[%clk 0:01:59.3]} 23. g4 {[%clk 0:01:09.3]} 23... g5 {[%clk
0:01:24.1]} 24. Bxg5 {[%clk 0:01:06.6]} 24... c5 {[%clk 0:01:16]} 25. Bxf6
{[%clk 0:01:00.8]} 25... gxf6 {[%clk 0:01:16.9]} 26. Bd5 {[%clk 0:00:58.9]}
26... Rb8 {[%clk 0:01:09.4]} 27. g5 {[%clk 0:00:58.3]} 27... cxd4 {[%clk
0:01:07.4]} 28. cxd4 {[%clk 0:00:51.6]} 28... exd4 {[%clk 0:00:57.5]} 29. gxf6
{[%clk 0:00:51]} 29... Be5 {[%clk 0:00:57]} 30. Rg2+ {[%clk 0:00:49.5]} 30...
Kf8 {[%clk 0:00:57.2]} 31. Qd1 {[%clk 0:00:36.9]} 31... Rxf6 {[%clk 0:00:56.7]}
32. Qh5 {[%clk 0:00:35]} 32... Rxf1+ {[%clk 0:00:55.5]} 33. Nxf1 {[%clk
0:00:34.2]} 33... Nf6 {[%clk 0:00:51.8]} 34. Qh6+ {[%clk 0:00:30.5]} 34... Ke7
{[%clk 0:00:50.8]} 35. Bb3 {[%clk 0:00:29.5]} 35... d3 {[%clk 0:00:40.5]} 36.
Rg7 {[%clk 0:00:27.5]} 36... Qc5+ {[%clk 0:00:39.3]} 37. Kh1 {[%clk 0:00:21.6]}
37... Rf8 {[%clk 0:00:36.1]} 38. Qg6 {[%clk 0:00:19.2]} 38... Kd6 {[%clk
0:00:17.6]} 39. Rxf7 {[%clk 0:00:17.3]} 39... Rxf7 {[%clk 0:00:15.8]} 40. Qxf7
{[%clk 0:00:17.7]} 40... Qd4 {[%clk 0:00:15.5]} 41. Qe6+ {[%clk 0:00:16.4]}
41... Kc5 {[%clk 0:00:15.3]} 42. Nd2 {[%clk 0:00:13.6]} 42... Qxb2 {[%clk
0:00:14.2]} 43. Qe7+ {[%clk 0:00:12.3]} 43... Kb6 {[%clk 0:00:13.9]} 44. Qd8+
{[%clk 0:00:10.3]} 44... Kc5 {[%clk 0:00:13.7]} 45. Qe7+ {[%clk 0:00:10.4]}
45... Kb6 {[%clk 0:00:13.9]} 46. Qd8+ {[%clk 0:00:10.7]} 46... Kc5 {[%clk
0:00:14.2]} 47. Qe7+ {[%clk 0:00:10.9]} 1/2-1/2

[Event "Early-Titled-Tuesday-Blitz-April-23-2024"]
[Site "Chess.com"]
[Date "2024.04.23"]
[Round "4"]
[White "dealshark"]
[Black "FischerKasparow"]
[Result "0-1"]
[WhiteElo "2306"]
[BlackElo "2124"]
[TimeControl "180+1"]
[EndTime "8:40:22 PDT"]
[Termination "FischerKasparow won by resignation"]

1. e4 {[%clk 0:03:00.9]} 1... c5 {[%clk 0:02:59.8]} 2. Nf3 {[%clk 0:03:00.9]}
2... d6 {[%clk 0:03:00.3]} 3. d4 {[%clk 0:03:01.2]} 3... Nf6 {[%clk 0:03:00.8]}
4. Nc3 {[%clk 0:02:53.1]} 4... cxd4 {[%clk 0:03:01.1]} 5. Nxd4 {[%clk
0:02:53.3]} 5... a6 {[%clk 0:03:01.6]} 6. Be3 {[%clk 0:02:52.9]} 6... e5 {[%clk
0:03:00.9]} 7. Nb3 {[%clk 0:02:47]} 7... Be6 {[%clk 0:03:01]} 8. f3 {[%clk
0:02:43.7]} 8... Be7 {[%clk 0:02:57.8]} 9. Qd2 {[%clk 0:02:39]} 9... Nbd7 {[%clk
0:02:57.6]} 10. g4 {[%clk 0:02:38.9]} 10... b5 {[%clk 0:02:56.9]} 11. h4 {[%clk
0:02:36.4]} 11... b4 {[%clk 0:02:54.9]} 12. Ne2 {[%clk 0:02:35.9]} 12... a5
{[%clk 0:02:43.7]} 13. h5 {[%clk 0:02:31.4]} 13... a4 {[%clk 0:02:42.6]} 14.
Nbc1 {[%clk 0:02:30.4]} 14... Nb6 {[%clk 0:02:30.3]} 15. Ng3 {[%clk 0:02:20.4]}
15... h6 {[%clk 0:02:21.9]} 16. Bb5+ {[%clk 0:02:11.9]} 16... Bd7 {[%clk
0:02:10.6]} 17. Bxd7+ {[%clk 0:02:11.2]} 17... Nfxd7 {[%clk 0:02:08.5]} 18. Nf5
{[%clk 0:02:10.3]} 18... Nc4 {[%clk 0:01:54.6]} 19. Qe2 {[%clk 0:01:35.2]} 19...
Nxe3 {[%clk 0:01:42.8]} 20. Qxe3 {[%clk 0:01:33.8]} 20... O-O {[%clk 0:01:40.6]}
21. Ne2 {[%clk 0:01:20.2]} 21... Bg5 {[%clk 0:01:39.7]} 22. Qd3 {[%clk
0:01:18.4]} 22... Nb6 {[%clk 0:00:59.2]} 23. Kf2 {[%clk 0:01:08.7]} 23... Qc7
{[%clk 0:00:53.4]} 24. Kg2 {[%clk 0:01:03.5]} 24... Rfd8 {[%clk 0:00:51.4]} 25.
Rhd1 {[%clk 0:00:59.8]} 25... Rac8 {[%clk 0:00:50.5]} 26. c3 {[%clk 0:00:53.4]}
26... bxc3 {[%clk 0:00:46.1]} 27. Nxc3 {[%clk 0:00:54.3]} 27... Qc4 {[%clk
0:00:39.9]} 28. Qxc4 {[%clk 0:00:50.2]} 28... Rxc4 {[%clk 0:00:33.4]} 29. Rxd6
{[%clk 0:00:48.9]} 29... Rxd6 {[%clk 0:00:30.7]} 30. Nxd6 {[%clk 0:00:49.1]}
30... Rd4 {[%clk 0:00:31.3]} 31. Rd1 {[%clk 0:00:44.8]} 31... Rb4 {[%clk
0:00:19.7]} 32. Rb1 {[%clk 0:00:23]} 32... Nd7 {[%clk 0:00:18.7]} 33. Nd5 {[%clk
0:00:21.7]} 33... Rd4 {[%clk 0:00:16.1]} 34. Nf5 {[%clk 0:00:17.4]} 34... Rd2+
{[%clk 0:00:15.5]} 35. Kf1 {[%clk 0:00:17.5]} 35... Nc5 {[%clk 0:00:15]} 36. Rc1
{[%clk 0:00:14.7]} 36... Nd3 {[%clk 0:00:13.1]} 37. Rc8+ {[%clk 0:00:14.5]}
37... Kh7 {[%clk 0:00:12.4]} 38. Rc3 {[%clk 0:00:12.9]} 38... Nxb2 {[%clk
0:00:09.9]} 39. Ra3 {[%clk 0:00:10.3]} 39... Rd1+ {[%clk 0:00:09.7]} 40. Ke2
{[%clk 0:00:09.6]} 40... Rh1 {[%clk 0:00:08.3]} 41. Ng3 {[%clk 0:00:08.6]} 41...
Rh2+ {[%clk 0:00:07.8]} 42. Kf1 {[%clk 0:00:08.9]} 42... Nc4 {[%clk 0:00:07.6]}
43. Rc3 {[%clk 0:00:08.4]} 43... Ne3+ {[%clk 0:00:07.1]} 44. Ke1 {[%clk
0:00:07.8]} 44... Ng2+ {[%clk 0:00:06.7]} 45. Kd1 {[%clk 0:00:07.7]} 45... Ne3+
{[%clk 0:00:06.8]} 46. Kc1 {[%clk 0:00:07.4]} 46... Nxd5+ {[%clk 0:00:06.7]} 47.
Re3 {[%clk 0:00:07.2]} 47... Nxe3 {[%clk 0:00:06.5]} 0-1

[Event "Early-Titled-Tuesday-Blitz-April-23-2024"]
[Site "Chess.com"]
[Date "2024.04.23"]
[Round "4"]
[White "Rsnr"]
[Black "xberli"]
[Result "0-1"]
[WhiteElo "2880"]
[BlackElo "2635"]
[TimeControl "180+1"]
[EndTime "8:40:25 PDT"]
[Termination "xberli won on time"]

1. d4 {[%clk 0:03:00.9]} 1... Nf6 {[%clk 0:02:59.1]} 2. c4 {[%clk 0:02:59.9]}
2... g6 {[%clk 0:02:59.2]} 3. h4 {[%clk 0:03:00.1]} 3... c5 {[%clk 0:02:56]} 4.
d5 {[%clk 0:03:00.4]} 4... e6 {[%clk 0:02:51.9]} 5. Nc3 {[%clk 0:02:57.8]} 5...
exd5 {[%clk 0:02:50.4]} 6. cxd5 {[%clk 0:02:58.7]} 6... h5 {[%clk 0:02:47.6]} 7.
e4 {[%clk 0:02:58]} 7... d6 {[%clk 0:02:47.2]} 8. Bb5+ {[%clk 0:02:31.4]} 8...
Nfd7 {[%clk 0:02:39.1]} 9. Bg5 {[%clk 0:01:54.2]} 9... Be7 {[%clk 0:02:33.1]}
10. Qd2 {[%clk 0:01:54.6]} 10... a6 {[%clk 0:02:22.9]} 11. Be2 {[%clk
0:01:54.3]} 11... Ne5 {[%clk 0:02:20.4]} 12. Nf3 {[%clk 0:01:46.5]} 12... Nbd7
{[%clk 0:02:12.9]} 13. a4 {[%clk 0:01:46.1]} 13... Nxf3+ {[%clk 0:02:04.9]} 14.
gxf3 {[%clk 0:01:47]} 14... Ne5 {[%clk 0:02:04.7]} 15. f4 {[%clk 0:01:31.6]}
15... Ng4 {[%clk 0:01:59.7]} 16. f3 {[%clk 0:01:29.1]} 16... Nf6 {[%clk
0:01:42.4]} 17. e5 {[%clk 0:01:24.5]} 17... Nh7 {[%clk 0:01:37.7]} 18. Ne4
{[%clk 0:01:22.9]} 18... Nxg5 {[%clk 0:01:36]} 19. hxg5 {[%clk 0:01:23.1]} 19...
Bf5 {[%clk 0:01:29.6]} 20. Nf6+ {[%clk 0:01:22.8]} 20... Bxf6 {[%clk 0:01:28.6]}
21. gxf6 {[%clk 0:01:14.8]} 21... Qc7 {[%clk 0:01:16.5]} 22. Kf2 {[%clk
0:01:09.6]} 22... O-O-O {[%clk 0:01:09]} 23. Rad1 {[%clk 0:00:38.8]} 23... Kb8
{[%clk 0:01:02.7]} 24. Rhe1 {[%clk 0:00:34.7]} 24... h4 {[%clk 0:00:58.1]} 25.
Kg1 {[%clk 0:00:35.2]} 25... h3 {[%clk 0:00:54.9]} 26. Kh2 {[%clk 0:00:35.8]}
26... g5 {[%clk 0:00:48.3]} 27. Bf1 {[%clk 0:00:31]} 27... c4 {[%clk 0:00:27]}
28. Qd4 {[%clk 0:00:27.6]} 28... Rh4 {[%clk 0:00:25.2]} 29. e6 {[%clk
0:00:24.5]} 29... Rxf4 {[%clk 0:00:21.8]} 30. Qe3 {[%clk 0:00:24.7]} 30... Rg8
{[%clk 0:00:16.4]} 31. e7 {[%clk 0:00:22.5]} 31... Bd7 {[%clk 0:00:16]} 32. Rd4
{[%clk 0:00:19.3]} 32... Rxd4 {[%clk 0:00:11]} 33. Qxd4 {[%clk 0:00:20.2]} 33...
Qc8 {[%clk 0:00:08.9]} 34. Qxc4 {[%clk 0:00:18.4]} 34... Qe8 {[%clk 0:00:07.9]}
35. Rc1 {[%clk 0:00:17.1]} 35... g4 {[%clk 0:00:07.7]} 36. Qc7+ {[%clk 0:00:17]}
36... Ka8 {[%clk 0:00:08.1]} 37. fxg4 {[%clk 0:00:14.9]} 37... Bxg4 {[%clk
0:00:06.1]} 38. Qxd6 {[%clk 0:00:14.5]} 38... Bc8 {[%clk 0:00:05.8]} 39. Qc7
{[%clk 0:00:07.3]} 39... Qxa4 {[%clk 0:00:05.4]} 40. Qe5 {[%clk 0:00:03.1]}
40... Qd7 {[%clk 0:00:04.1]} 41. Qe3 {[%clk 0:00:03.1]} 41... Qd6+ {[%clk
0:00:03.9]} 42. Kh1 {[%clk 0:00:01.3]} 42... Qxd5+ {[%clk 0:00:03.4]} 43. Kh2
{[%clk 0:00:01.9]} 43... Qd6+ {[%clk 0:00:03.6]} 44. Kh1 {[%clk 0:00:02.6]}
44... Bd7 {[%clk 0:00:04.1]} 45. Re1 {[%clk 0:00:02.1]} 45... Bc6+ {[%clk
0:00:03.9]} 0-1